[Event "FIDE WCCC Girls-10 2024"]
[Site "Montesilvano"]
[Date "2024.11.19"]
[Round "5.20"]
[White "Bjerregaard Hagen, Frida"]
[Black "Guerra Mansilla, Maria Ignacia"]
[Result "1/2-1/2"]
[ECO "E60"]
[WhiteElo "1815"]
[BlackElo "1545"]
[Annotator "NA RC"]
[PlyCount "71"]
[EventDate "2024.11.18"]
[EventType "swiss"]
[EventCountry "ITA"]
[SourceTitle "playchess.com"]
[Source "ChessBase"]
[SourceQuality "1"]
[TimeControl "5400+30"]

1. d4 {[%emt 0:00:02]} Nf6 {[%emt 0:00:10]} 2. Nf3 {[%emt 0:00:16]} g6 {[%emt 0:00:26]} 3. e3 {[%emt 0:00:40]} Bg7 {[%emt 0:00:10]} 4. Be2 {[%emt 0:00:42]} O-O {[%emt 0:00:25]} 5. O-O {[%emt 0:00:29]} d6 {[%emt 0:01:46]} 6. b3 {[%emt 0:02:00]} c5 {[%emt 0:01:12]} 7. Bb2 {[%emt 0:01:48]} Nc6 {[%emt 0:03:06]} 8. c4 {[%emt 0:02:38]} e6 {[%emt 0:08:12]} 9. Nc3 {[%emt 0:02:41]} b6 {[%emt 0:10:25]} 10. Qd2 {[%emt 0:02:34]} Bb7 {[%emt 0:04:06]} 11. Rfd1 {[%emt 0:02:16]} Re8 {[%emt 0:04:53]} 12. dxc5 {[%emt 0:06:39]} dxc5 {[%emt 0:03:35]} 13. h3 {[%emt 0:04:31]} Qxd2 {[%emt 0:00:41]} 14. Rxd2 {[%emt 0:00:25]} Rad8 {[%emt 0:00:15]} 15. Rad1 {[%emt 0:01:10]} Rxd2 {[%emt 0:00:16]} 16. Rxd2 {[%emt 0:00:25]} Rd8 {[%emt 0:02:31]} 17. Rxd8+ {[%emt 0:01:37]} Nxd8 {[%emt 0:00:10]} 18. Kf1 {[%emt 0:02:31]} Ne4 {[%emt 0:03:29]} 19. Nd1 {[%emt 0:06:03]} Bxb2 {[%emt 0:00:29]} 20. Nxb2 {[%emt 0:00:06]} Nc3 {[%emt 0:01:00]} 21. a3 {[%emt 0:00:36]} Nxe2 {[%emt 0:01:49]} 22. Kxe2 {[%emt 0:00:09]} Bxf3+ {[%emt 0:01:40]} 23. Kxf3 {[%emt 0:00:14]} Kg7 {[%emt 0:00:22]} 24. Ke4 {[%emt 0:01:16]} Kf6 {[%emt 0:01:15]} 25. Nd3 {[%emt 0:01:26]} Nc6 {[%emt 0:05:49]} 26. g3 {[%emt 0:04:14]} Na5 {[%emt 0:03:01]} 27. Nc1 {[%emt 0:01:26]} h5 {[%emt 0:01:56]} 28. f4 {[%emt 0:06:08]} Nc6 {[%emt 0:03:16]} 29. Nd3 {[%emt 0:02:48]} Na5 {[%emt 0:00:52]} 30. Nc1 {[%emt 0:01:35]} Nc6 {[%emt 0:00:23]} 31. g4 {[%emt 0:06:03]} hxg4 {[%emt 0:01:32]} 32. hxg4 {[%emt 0:00:15]} g5 {[%emt 0:00:37]} 33. Ne2 {[%emt 0:02:03]} Na5 {[%emt 0:00:40]} 34. Nc1 {[%emt 0:01:05]} Nc6 {[%emt 0:00:52]} 35. Ne2 {[%emt 0:02:53]} Na5 {[%emt 0:00:22]} 36. Nc1 {[%emt 0:01:38]} 1/2-1/2

[Event "FIDE WCCC Girls-10 2024"]
[Site "Montesilvano"]
[Date "2024.11.19"]
[Round "5.21"]
[White "Isakhanyan, Nare"]
[Black "Rosset, Anna"]
[Result "1-0"]
[ECO "A06"]
[WhiteElo "1540"]
[BlackElo "1814"]
[Annotator "NA RC"]
[PlyCount "59"]
[EventDate "2024.11.18"]
[EventType "swiss"]
[EventCountry "ITA"]
[SourceTitle "playchess.com"]
[Source "ChessBase"]
[SourceQuality "1"]
[TimeControl "5400+30"]

1. d4 {[%emt 0:00:01]} d5 {[%emt 0:00:03]} 2. c4 {[%emt 0:00:07]} c6 {[%emt 0:00:03]} 3. Nf3 {[%emt 0:00:06]} Nf6 {[%emt 0:00:07]} 4. e3 {[%emt 0:00:08]} e6 {[%emt 0:00:09]} 5. b3 {[%emt 0:00:05]} Nbd7 {[%emt 0:02:14]} 6. Bd3 {[%emt 0:03:18]} Bd6 {[%emt 0:02:00]} 7. Bb2 {[%emt 0:00:10]} O-O {[%emt 0:00:38]} 8. O-O {[%emt 0:00:08]} Qe7 {[%emt 0:00:42]} 9. Ne5 {[%emt 0:02:58]} Bc7 {[%emt 0:07:15]} 10. Nd2 {[%emt 0:06:02]} Rd8 {[%emt 0:15:12]} 11. f4 {[%emt 0:07:24]} c5 {[%emt 0:08:29]} 12. Rf3 {[%emt 0:14:12]} Bb6 {[%emt 0:07:41]} 13. Rh3 {[%emt 0:06:28]} Nf8 {[%emt 0:05:11]} 14. g4 {[%emt 0:14:13]} dxc4 {[%emt 0:03:23]} 15. Ndxc4 {[%emt 0:00:17]} cxd4 {[%emt 0:01:47]} 16. Nxb6 {[%emt 0:05:39]} axb6 {[%emt 0:00:11]} 17. Bxd4 {[%emt 0:00:14]} Qb4 {[%emt 0:07:57]} 18. g5 {[%emt 0:02:40]} Ne8 {[%emt 0:14:33]} 19. Bxh7+ {[%emt 0:17:12]} Nxh7 {[%emt 0:00:44]} 20. Qh5 {[%emt 0:00:11]} Nd6 {[%emt 0:01:59]} 21. Qxh7+ {[%emt 0:01:04]} Kf8 {[%emt 0:00:05]} 22. Ng6+ {[%emt 0:06:14]} Ke8 {[%emt 0:00:36]} 23. Qg8+ {[%emt 0:00:27]} Kd7 {[%emt 0:00:07]} 24. Ne5+ {[%emt 0:00:08]} Ke7 {[%emt 0:01:01]} 25. Qxg7 {[%emt 0:00:15]} Ne8 {[%emt 0:03:10]} 26. Qxf7+ {[%emt 0:00:39]} Kd6 {[%emt 0:00:06]} 27. Qf8+ {[%emt 0:00:10]} Kd5 {[%emt 0:02:22]} 28. Qxb4 {[%emt 0:00:16]} Ke4 {[%emt 0:00:17]} 29. Bxb6+ {[%emt 0:00:32]} Kf5 {[%emt 0:00:06]} 30. Bxd8 {[%emt 0:00:27]} 1-0

[Event "FIDE WCCC Girls-10 2024"]
[Site "Montesilvano"]
[Date "2024.11.19"]
[Round "5.22"]
[White "Mandukhai, Munkhbat"]
[Black "Pham, Nhu Y"]
[Result "0-1"]
[ECO "E14"]
[WhiteElo "1645"]
[BlackElo "1914"]
[Annotator "RC"]
[PlyCount "124"]
[EventDate "2024.11.18"]
[EventType "swiss"]
[EventCountry "ITA"]
[SourceTitle "playchess.com"]
[Source "ChessBase"]
[SourceQuality "1"]
[TimeControl "5400+30"]

1. e4 {[%emt 0:00:02]} c6 {[%emt 0:00:09]} 2. c4 {[%emt 0:00:51]} d5 {[%emt 0:00:08]} 3. exd5 {[%emt 0:00:07]} cxd5 {[%emt 0:00:11]} 4. cxd5 {[%emt 0:00:07]} Nf6 {[%emt 0:00:12]} 5. Nc3 {[%emt 0:01:15]} Nxd5 {[%emt 0:01:01]} 6. Nf3 {[%emt 0:01:53]} Nc6 {[%emt 0:00:32]} 7. Bc4 {[%emt 0:03:10]} Nxc3 {[%emt 0:03:59]} 8. bxc3 {[%emt 0:00:18]} e6 {[%emt 0:02:06]} 9. d4 {[%emt 0:01:00]} Be7 {[%emt 0:01:05]} 10. O-O {[%emt 0:00:44]} O-O {[%emt 0:01:14]} 11. Re1 {[%emt 0:00:12]} b6 {[%emt 0:05:48]} 12. Bb3 {[%emt 0:01:21]} Bb7 {[%emt 0:02:20]} 13. Bc2 {[%emt 0:00:46]} Bf6 {[%emt 0:04:54]} 14. Qd3 {[%emt 0:05:19]} g6 {[%emt 0:00:45]} 15. Bh6 {[%emt 0:03:10]} Bg7 {[%emt 0:02:15]} 16. Bf4 {[%emt 0:03:28]} Rc8 {[%emt 0:02:58]} 17. Rad1 {[%emt 0:01:09]} Ne7 {[%emt 0:05:45]} 18. Bb3 {[%emt 0:15:40]} Nd5 {[%emt 0:05:53]} 19. Bxd5 {[%emt 0:02:58]} Qxd5 {[%emt 0:00:38]} 20. Rd2 {[%emt 0:06:14]} Rfd8 {[%emt 0:02:24]} 21. Qe3 {[%emt 0:08:39]} Rc4 {[%emt 0:10:17]} 22. Red1 {[%emt 0:09:43]} Rdc8 {[%emt 0:04:20]} 23. Rc1 {[%emt 0:03:35]} Qe4 {[%emt 0:04:05]} 24. Rdc2 {[%emt 0:14:39]} Qxe3 {[%emt 0:02:16]} 25. fxe3 {[%emt 0:03:44]} Be4 {[%emt 0:01:29]} 26. Nd2 {[%emt 0:00:28]} Bxc2 {[%emt 0:00:45]} 27. Nxc4 {[%emt 0:00:11]} Rxc4 {[%emt 0:00:11]} 28. Rxc2 {[%emt 0:00:13]} Bf8 {[%emt 0:04:39]} 29. Bg3 {[%emt 0:04:49]} b5 {[%emt 0:02:29]} 30. Kf1 {[%emt 0:04:25]} Bb4 {[%emt 0:05:22]} 31. Be1 {[%emt 0:00:57]} f5 {[%emt 0:02:50]} 32. Ke2 {[%emt 0:00:15]} Kf7 {[%emt 0:00:54]} 33. Kd3 {[%emt 0:00:16]} Bd6 {[%emt 0:00:35]} 34. h3 {[%emt 0:01:00]} e5 {[%emt 0:00:43]} 35. Rb2 {[%emt 0:04:12]} e4+ {[%emt 0:00:51]} 36. Kd2 {[%emt 0:00:38]} a6 {[%emt 0:01:13]} 37. Ke2 {[%emt 0:00:34]} g5 {[%emt 0:02:30]} 38. g3 {[%emt 0:00:48]} Ke6 {[%emt 0:01:45]} 39. Rb3 {[%emt 0:00:38]} Kd5 {[%emt 0:00:57]} 40. Rb2 {[%emt 0:00:23]} Kc6 {[%emt 0:00:48]} 41. Kd2 {[%emt 0:00:32]} a5 {[%emt 0:01:11]} 42. Kd1 {[%emt 0:00:29]} h6 {[%emt 0:06:54]} 43. Rc2 {[%emt 0:00:21]} f4 {[%emt 0:04:23]} 44. exf4 {[%emt 0:00:38]} gxf4 {[%emt 0:00:04]} 45. gxf4 {[%emt 0:00:26]} Bxf4 {[%emt 0:00:11]} 46. Rf2 {[%emt 0:00:27]} Bg5 {[%emt 0:00:19]} 47. Re2 {[%emt 0:00:32]} Kd5 {[%emt 0:00:47]} 48. h4 {[%emt 0:00:29]} Be7 {[%emt 0:01:27]} 49. Rg2 {[%emt 0:00:37]} b4 {[%emt 0:06:28]} 50. Rc2 {[%emt 0:00:33]} bxc3 {[%emt 0:00:00]} 51. Bxc3 {[%emt 0:00:29]} a4 {[%emt 0:00:00]} 52. Kd2 {[%emt 0:00:32]} Bxh4 {[%emt 0:00:00]} 53. Ke2 {[%emt 0:00:33]} Bg5 {[%emt 0:00:00]} 54. Kd1 {[%emt 0:00:12]} Be3 {[%emt 0:00:00]} 55. a3 {[%emt 0:00:38]} Bxd4 {[%emt 0:00:00]} 56. Rh2 {[%emt 0:00:10]} Rxc3 {[%emt 0:00:00]} 57. Rxh6 {[%emt 0:00:11]} Rxa3 {[%emt 0:00:00]} 58. Rh5+ {[%emt 0:00:09]} Kc4 {[%emt 0:00:00]} 59. Ke2 {[%emt 0:00:09]} Ra2+ {[%emt 0:00:00]} 60. Kd1 {[%emt 0:00:07]} Kd3 {[%emt 0:00:00]} 61. Rh3+ {[%emt 0:00:21]} e3 {[%emt 0:00:00]} 62. Rxe3+ {[%emt 0:01:30]} Bxe3 {[%emt 0:00:00]} 0-1

[Event "FIDE WCCC Girls-10 2024"]
[Site "Montesilvano"]
[Date "2024.11.19"]
[Round "5.23"]
[White "Ritinioti, Sofia"]
[Black "Sun, Yucan(Sd)"]
[Result "0-1"]
[ECO "A45"]
[WhiteElo "1534"]
[BlackElo "1725"]
[Annotator "NA RC"]
[PlyCount "134"]
[EventDate "2024.11.18"]
[EventType "swiss"]
[EventCountry "ITA"]
[SourceTitle "playchess.com"]
[Source "ChessBase"]
[SourceQuality "1"]
[TimeControl "5400+30"]

1. d4 {[%emt 0:00:04]} Nf6 {[%emt 0:00:09]} 2. Bf4 {[%emt 0:00:17]} c6 {[%emt 0:00:06]} 3. Nc3 {[%emt 0:00:33]} Qb6 {[%emt 0:00:35]} 4. Rb1 {[%emt 0:00:47]} d5 {[%emt 0:08:16]} 5. e3 {[%emt 0:01:49]} g6 {[%emt 0:02:18]} 6. Nf3 {[%emt 0:01:50]} Bg7 {[%emt 0:02:34]} 7. Bd3 {[%emt 0:03:40]} O-O {[%emt 0:05:25]} 8. O-O {[%emt 0:02:12]} a5 {[%emt 0:11:15]} 9. Na4 {[%emt 0:10:06]} Qd8 {[%emt 0:00:33]} 10. c3 {[%emt 0:06:42]} b5 {[%emt 0:03:35]} 11. Nc5 {[%emt 0:00:50]} Nbd7 {[%emt 0:01:26]} 12. Nxd7 {[%emt 0:01:50]} Nxd7 {[%emt 0:05:50]} 13. e4 {[%emt 0:06:06]} dxe4 {[%emt 0:07:28]} 14. Bxe4 {[%emt 0:00:35]} Bb7 {[%emt 0:00:33]} 15. Re1 {[%emt 0:06:30]} Nf6 {[%emt 0:03:57]} 16. Bd3 {[%emt 0:01:13]} Nd5 {[%emt 0:01:33]} 17. Bg3 {[%emt 0:03:28]} Qb6 {[%emt 0:09:41]} 18. a3 {[%emt 0:08:03]} c5 {[%emt 0:04:28]} 19. dxc5 {[%emt 0:01:20]} Qxc5 {[%emt 0:00:10]} 20. Qe2 {[%emt 0:08:42]} Bc6 {[%emt 0:03:42]} 21. c4 {[%emt 0:07:43]} bxc4 {[%emt 0:02:23]} 22. Bxc4 {[%emt 0:00:45]} Rfe8 {[%emt 0:04:31]} 23. Ne5 {[%emt 0:04:21]} Bb7 {[%emt 0:05:54]} 24. Red1 {[%emt 0:07:28]} e6 {[%emt 0:04:38]} 25. Rbc1 {[%emt 0:04:48]} Qb6 {[%emt 0:01:42]} 26. Bb5 {[%emt 0:02:59]} Rec8 {[%emt 0:01:59]} 27. Nd7 {[%emt 0:01:48]} Qd8 {[%emt 0:01:30]} 28. Rxc8 {[%emt 0:01:15]} Rxc8 {[%emt 0:00:26]} 29. Ne5 {[%emt 0:01:45]} Qg5 {[%emt 0:02:22]} 30. Nf3 {[%emt 0:01:22]} Qe7 {[%emt 0:02:08]} 31. Bc4 {[%emt 0:00:47]} Qc5 {[%emt 0:00:29]} 32. Bxd5 {[%emt 0:00:33]} Bxd5 {[%emt 0:00:11]} 33. h3 {[%emt 0:00:44]} Qb6 {[%emt 0:00:35]} 34. Ne5 {[%emt 0:00:57]} h5 {[%emt 0:05:08]} 35. h4 {[%emt 0:00:20]} a4 {[%emt 0:00:00]} 36. Qd2 {[%emt 0:00:42]} Qb7 {[%emt 0:00:00]} 37. f3 {[%emt 0:00:37]} Kh7 {[%emt 0:00:00]} 38. Rc1 {[%emt 0:00:33]} Rd8 {[%emt 0:00:00]} 39. Qa5 {[%emt 0:00:43]} Ra8 {[%emt 0:00:00]} 40. Qd2 {[%emt 0:00:24]} f6 {[%emt 0:00:03]} 41. Nd3 {[%emt 0:00:19]} e5 {[%emt 0:00:18]} 42. Nb4 {[%emt 0:00:32]} Be6 {[%emt 0:00:15]} 43. Rc6 {[%emt 0:00:32]} Qf7 {[%emt 0:00:20]} 44. Kh1 {[%emt 0:00:48]} Ra7 {[%emt 0:00:36]} 45. Kh2 {[%emt 0:00:32]} Rd7 {[%emt 0:00:25]} 46. Rd6 {[%emt 0:00:24]} Bf8 {[%emt 0:01:00]} 47. Rxd7 {[%emt 0:00:12]} Bxd7 {[%emt 0:00:05]} 48. Nd3 {[%emt 0:00:33]} Be6 {[%emt 0:00:51]} 49. Nc5 {[%emt 0:00:20]} Bxc5 {[%emt 0:00:02]} 50. Qa5 {[%emt 0:00:34]} Qa7 {[%emt 0:00:08]} 51. Qe1 {[%emt 0:00:43]} Bd4 {[%emt 0:00:14]} 52. Qb4 {[%emt 0:01:21]} Qd7 {[%emt 0:01:02]} 53. Qb8 {[%emt 0:00:55]} Kg7 {[%emt 0:00:29]} 54. Qb4 {[%emt 0:00:24]} Bb3 {[%emt 0:00:12]} 55. Qb8 {[%emt 0:00:47]} Bxb2 {[%emt 0:00:15]} 56. Qb4 {[%emt 0:00:25]} Kf7 {[%emt 0:00:28]} 57. Qc5 {[%emt 0:00:39]} Qe7 {[%emt 0:00:39]} 58. Qe3 {[%emt 0:00:55]} Bxa3 {[%emt 0:00:20]} 59. Qc3 {[%emt 0:00:22]} Qc5 {[%emt 0:00:18]} 60. Qa1 {[%emt 0:00:40]} Qc1 {[%emt 0:00:24]} 61. Qxc1 {[%emt 0:00:31]} Bxc1 {[%emt 0:00:02]} 62. Kg1 {[%emt 0:00:26]} a3 {[%emt 0:00:10]} 63. Kf2 {[%emt 0:00:08]} a2 {[%emt 0:00:14]} 64. Ke2 {[%emt 0:00:08]} a1=Q {[%emt 0:00:07]} 65. Kd3 {[%emt 0:00:14]} Qb1+ {[%emt 0:00:11]} 66. Ke2 {[%emt 0:00:08]} Bc4+ {[%emt 0:00:02]} 67. Ke1 {[%emt 0:00:15]} Be3# {[%emt 0:00:41]} 0-1

[Event "FIDE WCCC Girls-10 2024"]
[Site "Montesilvano"]
[Date "2024.11.19"]
[Round "5.24"]
[White "Kocherha, Yelizavieta"]
[Black "Mohamed Ahmed, Ghidaa"]
[Result "0-1"]
[ECO "C41"]
[WhiteElo "1523"]
[BlackElo "1638"]
[Annotator "NA RC"]
[PlyCount "75"]
[EventDate "2024.11.18"]
[EventType "swiss"]
[EventCountry "ITA"]
[SourceTitle "playchess.com"]
[Source "ChessBase"]
[SourceQuality "1"]
[TimeControl "5400+30"]

1. e4 {[%emt 0:00:07]} e5 {[%emt 0:00:06]} 2. Nf3 {[%emt 0:00:23]} d6 {[%emt 0:00:06]} 3. d4 {[%emt 0:00:36]} exd4 {[%emt 0:00:08]} 4. Nxd4 {[%emt 0:00:26]} Nf6 {[%emt 0:00:27]} 5. Nc3 {[%emt 0:00:27]} Be7 {[%emt 0:00:04]} 6. Bf4 {[%emt 0:00:40]} O-O {[%emt 0:00:19]} 7. Qd2 {[%emt 0:00:26]} a6 {[%emt 0:00:40]} 8. O-O-O {[%emt 0:00:33]} b5 {[%emt 0:00:13]} 9. Be2 {[%emt 0:00:45]} Re8 {[%emt 0:20:44]} 10. f3 {[%emt 0:03:45]} b4 {[%emt 0:04:38]} 11. Nd5 {[%emt 0:00:25]} Nxd5 {[%emt 0:00:23]} 12. exd5 {[%emt 0:00:41]} a5 {[%emt 0:00:34]} 13. g4 {[%emt 0:01:36]} Bf6 {[%emt 0:01:42]} 14. Bb5 {[%emt 0:01:55]} Bd7 {[%emt 0:02:16]} 15. Bxd7 {[%emt 0:01:18]} Qxd7 {[%emt 0:00:24]} 16. Nf5 {[%emt 0:03:33]} Qb5 {[%emt 0:08:26]} 17. Rhe1 {[%emt 0:03:33]} Nd7 {[%emt 0:00:22]} 18. h4 {[%emt 0:02:45]} Nb6 {[%emt 0:07:48]} 19. Rxe8+ {[%emt 0:10:59]} Rxe8 {[%emt 0:00:31]} 20. Ne3 {[%emt 0:00:47]} Na4 {[%emt 0:02:19]} 21. Qd3 {[%emt 0:10:00]} Bxb2+ {[%emt 0:05:18]} 22. Kb1 {[%emt 0:01:20]} Qxd3 {[%emt 0:01:10]} 23. Rxd3 {[%emt 0:00:23]} Bc3 {[%emt 0:12:41]} 24. Bg3 {[%emt 0:03:08]} Nc5 {[%emt 0:01:43]} 25. Rd1 {[%emt 0:02:42]} Rxe3 {[%emt 0:00:25]} 26. Bf2 {[%emt 0:02:00]} Rxf3 {[%emt 0:00:46]} 27. Bxc5 {[%emt 0:00:22]} dxc5 {[%emt 0:00:20]} 28. g5 {[%emt 0:02:54]} Re3 {[%emt 0:00:38]} 29. Kc1 {[%emt 0:01:02]} Re1 {[%emt 0:00:15]} 30. Rxe1 {[%emt 0:00:21]} Bxe1 {[%emt 0:00:05]} 31. d6 {[%emt 0:00:22]} cxd6 {[%emt 0:00:10]} 32. c3 {[%emt 0:00:25]} Bxc3 {[%emt 0:00:13]} 33. g6 {[%emt 0:00:28]} hxg6 {[%emt 0:00:10]} 34. h5 {[%emt 0:00:07]} gxh5 {[%emt 0:00:06]} 35. a4 {[%emt 0:00:17]} bxa3 {[%emt 0:00:33]} 36. Kb1 {[%emt 0:00:34]} h4 {[%emt 0:00:08]} 37. Kc2 {[%emt 0:01:21]} a2 {[%emt 0:00:09]} 38. Kd1 {[%emt 0:46:04]} 0-1

[Event "FIDE WCCC Girls-10 2024"]
[Site "Montesilvano"]
[Date "2024.11.19"]
[Round "5.25"]
[White "Poliak, Margarita"]
[Black "Li, Wan Qin"]
[Result "1-0"]
[ECO "E18"]
[WhiteElo "1514"]
[BlackElo "1628"]
[Annotator "NA RC"]
[PlyCount "93"]
[EventDate "2024.11.18"]
[EventType "swiss"]
[EventCountry "ITA"]
[SourceTitle "playchess.com"]
[Source "ChessBase"]
[SourceQuality "1"]
[TimeControl "5400+30"]

1. d4 {[%emt 0:00:04]} Nf6 {[%emt 0:00:10]} 2. c4 {[%emt 0:00:19]} e6 {[%emt 0:00:13]} 3. Nf3 {[%emt 0:00:09]} b6 {[%emt 0:00:14]} 4. g3 {[%emt 0:00:19]} Bb7 {[%emt 0:00:21]} 5. Bg2 {[%emt 0:00:15]} Be7 {[%emt 0:00:46]} 6. O-O {[%emt 0:00:49]} O-O {[%emt 0:00:17]} 7. Nc3 {[%emt 0:02:41]} d5 {[%emt 0:00:45]} 8. Ne5 {[%emt 0:04:37]} Nbd7 {[%emt 0:01:44]} 9. Qa4 {[%emt 0:01:33]} Nb8 {[%emt 0:19:08]} 10. Rd1 {[%emt 0:10:33]} c5 {[%emt 0:03:22]} 11. dxc5 {[%emt 0:27:31]} Bxc5 {[%emt 0:02:15]} 12. cxd5 {[%emt 0:00:54]} exd5 {[%emt 0:00:28]} 13. e4 {[%emt 0:11:13]} Qe7 {[%emt 0:03:34]} 14. Nd3 {[%emt 0:07:28]} dxe4 {[%emt 0:03:42]} 15. Nxc5 {[%emt 0:00:17]} Qxc5 {[%emt 0:01:33]} 16. Nxe4 {[%emt 0:00:51]} Nxe4 {[%emt 0:09:18]} 17. Bxe4 {[%emt 0:00:19]} Qe7 {[%emt 0:06:21]} 18. Re1 {[%emt 0:03:27]} Bxe4 {[%emt 0:08:02]} 19. Rxe4 {[%emt 0:01:07]} Qb7 {[%emt 0:01:02]} 20. Rg4 {[%emt 0:00:59]} Kh8 {[%emt 0:02:47]} 21. Bd2 {[%emt 0:02:27]} Nc6 {[%emt 0:01:55]} 22. Bc3 {[%emt 0:00:00]} f6 {[%emt 0:02:23]} 23. Rh4 {[%emt 0:02:36]} b5 {[%emt 0:07:08]} 24. Qe4 {[%emt 0:01:09]} f5 {[%emt 0:01:09]} 25. Qg2 {[%emt 0:01:30]} Kg8 {[%emt 0:01:30]} 26. Qh3 {[%emt 0:03:24]} g6 {[%emt 0:00:51]} 27. Qg2 {[%emt 0:01:53]} Qd7 {[%emt 0:03:02]} 28. Qf1 {[%emt 0:04:16]} Rab8 {[%emt 0:20:30]} 29. Rd1 {[%emt 0:00:59]} Qb7 {[%emt 0:00:00]} 30. Rd6 {[%emt 0:00:44]} Ne7 {[%emt 0:00:00]} 31. Qe2 {[%emt 0:00:31]} Rf7 {[%emt 0:00:00]} 32. Qe5 {[%emt 0:00:17]} Kf8 {[%emt 0:00:00]} 33. Qh8+ {[%emt 0:01:22]} Ng8 {[%emt 0:00:00]} 34. Bb4 {[%emt 0:00:44]} Qe7 {[%emt 0:00:00]} 35. Rdd4 {[%emt 0:00:46]} Qxb4 {[%emt 0:00:00]} 36. Rxb4 {[%emt 0:00:08]} a5 {[%emt 0:00:00]} 37. Qe5 {[%emt 0:00:52]} axb4 {[%emt 0:00:00]} 38. Qxb8+ {[%emt 0:00:04]} Kg7 {[%emt 0:00:00]} 39. Rxb4 {[%emt 0:00:06]} Ne7 {[%emt 0:00:00]} 40. Qxb5 {[%emt 0:00:15]} Rf6 {[%emt 0:00:00]} 41. a4 {[%emt 0:00:11]} Rb6 {[%emt 0:00:00]} 42. Qxb6 {[%emt 0:00:06]} Nd5 {[%emt 0:00:00]} 43. Qb7+ {[%emt 0:00:04]} Kf6 {[%emt 0:00:00]} 44. Qxd5 {[%emt 0:00:05]} g5 {[%emt 0:00:00]} 45. Rb6+ {[%emt 0:00:06]} Kg7 {[%emt 0:00:00]} 46. Qd7+ {[%emt 0:00:16]} Kf8 {[%emt 0:09:00]} 47. Rb8# {[%emt 0:00:05]} 1-0

[Event "FIDE WCCC Girls-10 2024"]
[Site "Montesilvano"]
[Date "2024.11.19"]
[Round "5.26"]
[White "Malcheva, Niya"]
[Black "Smilic, Nina"]
[Result "1-0"]
[ECO "B50"]
[WhiteElo "1620"]
[BlackElo "1540"]
[Annotator "NA RC"]
[PlyCount "119"]
[EventDate "2024.11.18"]
[EventType "swiss"]
[EventCountry "ITA"]
[SourceTitle "playchess.com"]
[Source "ChessBase"]
[SourceQuality "1"]
[TimeControl "5400+30"]

1. e4 {[%emt 0:00:04]} c5 {[%emt 0:00:09]} 2. Nf3 {[%emt 0:00:05]} d6 {[%emt 0:00:06]} 3. c3 {[%emt 0:00:58]} Nc6 {[%emt 0:00:55]} 4. Be2 {[%emt 0:00:14]} Nf6 {[%emt 0:00:16]} 5. d4 {[%emt 0:00:05]} cxd4 {[%emt 0:01:53]} 6. cxd4 {[%emt 0:00:10]} e6 {[%emt 0:01:59]} 7. Nc3 {[%emt 0:00:19]} Be7 {[%emt 0:02:18]} 8. O-O {[%emt 0:00:40]} O-O {[%emt 0:00:33]} 9. Bf4 {[%emt 0:02:04]} b6 {[%emt 0:09:08]} 10. d5 {[%emt 0:04:48]} Na5 {[%emt 0:05:23]} 11. dxe6 {[%emt 0:00:48]} Bxe6 {[%emt 0:05:27]} 12. Ng5 {[%emt 0:03:53]} d5 {[%emt 0:12:58]} 13. Nxe6 {[%emt 0:02:50]} fxe6 {[%emt 0:00:17]} 14. exd5 {[%emt 0:00:02]} Nxd5 {[%emt 0:05:34]} 15. Nxd5 {[%emt 0:00:09]} exd5 {[%emt 0:00:14]} 16. Bg3 {[%emt 0:01:00]} d4 {[%emt 0:05:39]} 17. Qd3 {[%emt 0:06:52]} Bf6 {[%emt 0:02:54]} 18. Rac1 {[%emt 0:06:27]} Nb7 {[%emt 0:05:06]} 19. Bf3 {[%emt 0:00:04]} Nc5 {[%emt 0:00:55]} 20. Qc4+ {[%emt 0:03:08]} Kh8 {[%emt 0:01:00]} 21. b4 {[%emt 0:01:24]} Nd7 {[%emt 0:08:37]} 22. Bxa8 {[%emt 0:05:36]} Qxa8 {[%emt 0:00:17]} 23. Qc6 {[%emt 0:00:05]} Qe8 {[%emt 0:10:46]} 24. Rfe1 {[%emt 0:02:19]} Qf7 {[%emt 0:03:21]} 25. Qe6 {[%emt 0:00:16]} Qxe6 {[%emt 0:01:04]} 26. Rxe6 {[%emt 0:00:05]} h6 {[%emt 0:02:33]} 27. Rc7 {[%emt 0:01:12]} Nb8 {[%emt 0:01:42]} 28. b5 {[%emt 0:00:08]} a6 {[%emt 0:05:35]} 29. Rb7 {[%emt 0:00:05]} Nd7 {[%emt 0:01:05]} 30. Rxd7 {[%emt 0:00:23]} axb5 {[%emt 0:00:07]} 31. Be5 {[%emt 0:00:14]} Rc8 {[%emt 0:02:06]} 32. g3 {[%emt 0:00:06]} Bxe5 {[%emt 0:01:41]} 33. Rxe5 {[%emt 0:00:31]} Rc1+ {[%emt 0:00:27]} 34. Kg2 {[%emt 0:00:04]} Rc2 {[%emt 0:01:32]} 35. Rxd4 {[%emt 0:00:09]} Rxa2 {[%emt 0:00:07]} 36. Rxb5 {[%emt 0:00:08]} Re2 {[%emt 0:00:10]} 37. Rxb6 {[%emt 0:00:06]} Re8 {[%emt 0:00:08]} 38. Rd2 {[%emt 0:00:14]} Rf8 {[%emt 0:00:19]} 39. f4 {[%emt 0:00:08]} Kh7 {[%emt 0:00:10]} 40. Rb7 {[%emt 0:00:33]} Kh8 {[%emt 0:00:11]} 41. Rdd7 {[%emt 0:00:14]} Rg8 {[%emt 0:00:11]} 42. Kf3 {[%emt 0:00:08]} Ra8 {[%emt 0:00:22]} 43. Rxg7 {[%emt 0:00:19]} Ra3+ {[%emt 0:00:05]} 44. Kg4 {[%emt 0:00:05]} Ra8 {[%emt 0:00:36]} 45. Rh7+ {[%emt 0:00:08]} Kg8 {[%emt 0:00:04]} 46. Rbg7+ {[%emt 0:00:05]} Kf8 {[%emt 0:00:08]} 47. Rh8+ {[%emt 0:00:03]} Kxg7 {[%emt 0:00:05]} 48. Rxa8 {[%emt 0:00:04]} Kg6 {[%emt 0:00:08]} 49. Ra6+ {[%emt 0:00:07]} Kg7 {[%emt 0:00:37]} 50. Kf5 {[%emt 0:00:08]} h5 {[%emt 0:00:06]} 51. Kg5 {[%emt 0:00:08]} Kf7 {[%emt 0:00:05]} 52. Kxh5 {[%emt 0:00:17]} Kg7 {[%emt 0:00:09]} 53. f5 {[%emt 0:00:03]} Kf7 {[%emt 0:00:20]} 54. Kg5 {[%emt 0:00:15]} Ke7 {[%emt 0:00:06]} 55. f6+ {[%emt 0:00:13]} Kf7 {[%emt 0:00:05]} 56. Kf5 {[%emt 0:00:04]} Kf8 {[%emt 0:00:08]} 57. Ra7 {[%emt 0:00:08]} Ke8 {[%emt 0:11:03]} 58. Ke6 {[%emt 0:00:06]} Kd8 {[%emt 0:00:00]} 59. f7 {[%emt 0:00:06]} Kc8 {[%emt 0:00:00]} 60. f8=Q# {[%emt 0:00:10]} 1-0